bitfinex-derivatives/quotes_SOLF0:USTF0_20241226
["timestamp","ask_amount","ask_price","bid_price","bid_amount"]
[1735205066658,21.7533179,189.49,189.44,7.72091736]
[1735205066959,2.6416,189.46,189.44,7.72091736]
[1735205068162,2.6416,189.45,189.44,7.72091736]
[1735205069462,2.6419,189.43,189.42,7.72091736]
[1735205070659,3.9644588,189.48,189.34,5.2182]
[1735205070962,2.6421,189.42,189.34,5.2182]
[1735205071160,2.6421,189.42,189.38,2.6425]
[1735205071356,2.6416,189.45,189.35,3.1581]
[1735205071560,2.6416,189.45,189.44,7.72091736]
[1735205072362,34.08232828,189.47,189.44,7.72091736]
[1735205072762,21.7533179,189.49,189.44,7.72091736]
[1735205074964,21.7533179,189.49,189.46,7.72091736]
[1735205078371,3.96445479,189.49,189.46,7.72091736]
[1735205078572,3.96445479,189.49,189.44,7.72091736]
[1735205079270,25.71777269,189.49,189.44,7.72091736]
[1735205079471,21.7533179,189.49,189.44,7.72091736]
[1735205079673,21.7533179,189.49,189.46,7.72091736]
[1735205079872,12.33830738,189.48,189.46,7.72091736]
[1735205081075,25.4333179,189.51,189.46,7.72091736]
[1735205081268,0.88424816,189.5,189.46,7.72091736]
[1735205081772,29.39745695,189.51,189.46,7.72091736]
[1735205081976,22.63756865,189.5,189.46,7.72091736]
[1735205082177,21.7533179,189.5,189.46,7.72091736]
[1735205083879,25.4333179,189.51,189.46,7.72091736]
[1735205084075,29.39740547,189.51,189.46,7.72091736]
[1735205084476,25.71740547,189.51,189.46,7.72091736]
[1735205085182,34.09298457,189.5,189.46,7.72091736]
[1735205086479,34.09298457,189.5,189.48,7.72091736]
[1735205086881,21.7533179,189.5,189.48,7.72091736]
[1735205087783,21.7533179,189.52,189.48,7.72091736]
[1735205088075,25.71720512,189.52,189.48,7.72091736]
[1735205090580,21.7533179,189.52,189.48,7.72091736]
[1735205090882,0.88421765,189.51,189.46,7.72091736]
[1735205091081,4.84814102,189.51,189.46,7.72091736]
[1735205091282,3.96392337,189.51,189.46,7.72091736]
[1735205091585,0.88424112,189.5,189.46,7.72091736]
[1735205091883,34.97841513,189.5,189.46,7.72091736]
[1735205092183,34.09417401,189.5,189.42,1.6725]
[1735205092383,34.09417401,189.5,189.47,7.72091736]
[1735205092884,21.7533179,189.5,189.47,7.72091736]
[1735205093282,21.7533179,189.5,189.49,7.72091736]
[1735205093482,21.7533179,189.5,189.47,7.72091736]
[1735205093683,3.96420405,189.5,189.45,7.72091736]
[1735205093884,0.88428627,189.49,189.45,7.72091736]
[1735205094087,3.96420405,189.5,189.45,7.72091736]
[1735205094280,0.884287,189.49,189.45,7.72091736]
[1735205094478,22.6376049,189.49,189.45,7.72091736]
[1735205094785,25.71752195,189.49,189.45,7.72091736]
[1735205095386,34.10020994,189.48,189.47,7.72091736]
[1735205096184,21.7533179,189.49,189.47,7.72091736]
[1735205097386,21.7533179,189.5,189.47,7.72091736]
[1735205097786,25.71742328,189.5,189.45,7.72091736]
[1735205098189,21.7533179,189.49,189.45,7.72091736]
[1735205098388,21.7533179,189.49,189.41,2.6421]
[1735205098688,25.71767541,189.49,189.45,7.72091736]
[1735205099286,21.7533179,189.48,189.45,7.72091736]
[1735205100985,25.71762908,189.48,189.4,2.6423]
[1735205101191,25.71762908,189.48,189.43,7.72091736]
[1735205101491,0.88432825,189.47,189.36,53.00478126]
[1735205101687,22.73205086,189.47,189.39,7.72091736]
[1735205101991,55.94793255,189.47,189.39,7.72091736]
[1735205102191,4.84876826,189.46,189.39,7.72091736]
[1735205102392,0.88445708,189.45,189.39,7.72091736]
[1735205102788,21.84910546,189.46,189.39,7.72091736]
[1735205103094,21.7533179,189.44,189.31,3.2212]
[1735205103294,2.44837919,189.43,189.36,7.72091736]
[1735205103488,9.20811118,189.43,189.36,7.72091736]
[1735205103793,9.37111736,189.42,189.36,7.72091736]
[1735205104292,1.6502,189.42,189.38,7.72091736]
[1735205104492,26.9971179,189.43,189.38,7.72091736]
[1735205104688,26.9971179,189.43,189.4,7.72091736]
[1735205105089,5.2438,189.43,189.4,7.72091736]
[1735205105488,5.2438,189.43,189.31,3.2212]
[1735205105489,9.20947945,189.43,189.38,7.72091736]
[1735205105983,9.20947945,189.43,189.31,3.2212]
[1735205105984,38.68371471,189.43,189.36,7.72091736]
[1735205106294,34.71803526,189.43,189.36,7.72091736]
[1735205106592,26.9971179,189.43,189.38,7.72091736]
[1735205108993,5.2438,189.43,189.38,7.72091736]
[1735205113193,1.5638,189.43,189.38,7.72091736]
[1735205113998,1.5638,189.43,189.4,7.72091736]
[1735205114398,21.7533179,189.46,189.42,7.72091736]
[1735205114600,21.7533179,189.46,189.45,7.72091736]
[1735205115294,3.66,189.49,189.45,7.72091736]
[1735205116496,0.88435735,189.48,189.31,3.2212]
[1735205116803,7.72091736,189.47,189.39,7.72091736]
[1735205117100,0.88435735,189.46,189.37,2.6426]
[1735205117298,0.88435735,189.46,189.4,7.72091736]
[1735205117499,0.88435735,189.45,189.4,7.72091736]
[1735205117700,10.17517715,189.47,189.4,7.72091736]
[1735205117900,8.60542991,189.46,189.4,7.72091736]
[1735205118100,0.88451255,189.45,189.4,7.72091736]
[1735205120097,0.88451255,189.45,189.42,7.72091736]
[1735205120300,25.71837203,189.47,189.42,7.72091736]
[1735205120502,0.88446938,189.46,189.42,7.72091736]
[1735205120700,0.88446938,189.46,189.4,7.72091736]
[1735205121891,29.47423526,189.47,189.4,7.72091736]
[1735205122092,0.88447238,189.46,189.4,7.72091736]
[1735205122603,4.84953515,189.46,189.4,7.72091736]
[1735205122805,0.88447331,189.45,189.4,7.72091736]
[1735205124103,3.96508502,189.46,189.4,7.72091736]
[1735205124304,0.88447775,189.45,189.4,7.72091736]
[1735205124803,3.96508502,189.46,189.4,7.72091736]
[1735205125006,0.88447775,189.45,189.4,7.72091736]
[1735205125699,25.71840292,189.47,189.42,7.72091736]
[1735205125905,21.7533179,189.47,189.46,7.72091736]
[1735205127499,21.7533179,189.47,189.46,10.36231736]
[1735205127805,137.13884016,189.51,189.46,7.72091736]
[1735205128002,137.13884016,189.51,189.5,7.72091736]
[1735205131103,137.13884016,189.51,189.48,2.6411]
[1735205131304,137.13884016,189.51,189.5,7.72091736]
[1735205137313,11.38091736,189.57,189.5,7.72091736]
[1735205137513,0.88398787,189.56,189.5,7.72091736]
[1735205138614,11.38091736,189.57,189.5,7.72091736]
[1735205138819,0.8839822,189.56,189.5,7.72091736]
[1735205139213,0.8839822,189.56,189.5,10.36181736]
[1735205139916,0.8839822,189.56,189.51,2.6407]
[1735205141218,0.8839822,189.56,189.52,7.72091736]
[1735205141414,3.9630682,189.6,189.45,3.66]
[1735205141415,10.14518981,189.65,189.54,7.72091736]
[1735205141718,0.88382409,189.62,189.58,7.72091736]
[1735205141922,0.88372734,189.61,189.58,7.72091736]
[1735205142114,8.9490779,189.65,189.58,7.72091736]
[1735205142313,0.88365409,189.62,189.58,7.72091736]
[1735205142716,1.6786,189.65,189.6,7.72091736]
[1735205143409,1.6786,189.65,189.58,7.72091736]
[1735205143617,0.88354115,189.64,189.58,7.72091736]
[1735205143816,0.88354115,189.64,189.53,1.568]
[1735205144014,0.88354115,189.64,189.57,7.72091736]
[1735205144815,0.88354115,189.64,189.59,7.72091736]
[1735205146421,0.88354115,189.64,189.61,7.72091736]
[1735205146721,7.72091736,189.63,189.52,3.2097]
[1735205146918,7.72091736,189.61,189.54,7.72091736]
[1735205147118,0.88354115,189.6,189.52,7.72091736]
[1735205147318,4.54354115,189.6,189.52,7.72091736]
[1735205147517,0.88354115,189.59,189.52,7.72091736]
[1735205148518,8.60445851,189.59,189.52,7.72091736]
[1735205148727,0.88354115,189.58,189.52,7.72091736]
[1735205149114,0.88354115,189.58,189.5,7.72091736]
[1735205149326,7.72091736,189.57,189.5,7.72091736]
[1735205149522,0.88354115,189.56,189.5,7.72091736]
[1735205149722,7.72091736,189.57,189.5,7.72091736]
[1735205149920,0.88392641,189.56,189.5,7.72091736]
[1735205151419,7.72091736,189.57,189.5,7.72091736]
[1735205153222,3.66,189.6,189.54,7.72091736]
[1735205153422,0.88380887,189.59,189.54,7.72091736]
[1735205157125,3.66,189.6,189.54,7.72091736]
[1735205157425,0.88377915,189.59,189.54,7.72091736]
[1735205158221,3.66,189.6,189.54,7.72091736]
[1735205158830,0.88374297,189.59,189.54,7.72091736]
[1735205160018,3.66,189.6,189.54,7.72091736]
[1735205160928,8.60464724,189.59,189.48,2.6411]
[1735205161125,0.88372988,189.58,189.51,7.72091736]
[1735205163531,0.88389255,189.57,189.51,7.72091736]
[1735205163728,7.72091736,189.59,189.51,7.72091736]
[1735205163928,0.88389029,189.58,189.51,7.72091736]
[1735205164433,0.88389029,189.58,189.53,7.72091736]
[1735205164631,3.96122822,189.62,189.57,7.72091736]
[1735205164929,99.12738292,189.64,189.57,7.72091736]
[1735205165332,1.5637,189.63,189.57,7.72091736]
[1735205166035,3.66,189.65,189.59,7.72091736]
[1735205166331,0.88353667,189.64,189.55,2.6402]
[1735205166532,0.88353667,189.64,189.58,7.72091736]
[1735205166732,0.88353667,189.64,189.52,1.5436]
[1735205166733,8.60445403,189.64,189.56,7.72091736]
[1735205166934,0.88353667,189.63,189.56,7.72091736]
[1735205167935,7.72091736,189.6,189.45,5.2582]
[1735205168134,3.66,189.59,189.52,7.72091736]
[1735205168931,0.88378792,189.58,189.52,7.72091736]
[1735205170433,3.66,189.59,189.54,7.72091736]
[1735205175740,3.66,189.59,189.51,2.6407]
[1735205175939,7.72091736,189.58,189.45,1.5982]
[1735205176141,7.72091736,189.58,189.51,7.72091736]
[1735205176438,0.88385918,189.57,189.51,7.72091736]
[1735205176638,0.8838587,189.57,189.51,7.72091736]
[1735205177144,3.66,189.59,189.55,7.72091736]
[1735205178439,3.66,189.59,189.53,7.72091736]
[1735205180941,0.88384556,189.58,189.51,7.72091736]
[1735205183044,0.88384556,189.58,189.53,7.72091736]
[1735205183241,3.66,189.59,189.55,7.72091736]
[1735205184243,3.66,189.59,189.53,7.72091736]
[1735205184548,0.88383862,189.58,189.53,7.72091736]
[1735205185043,11.38091736,189.59,189.52,7.72091736]
[1735205185249,0.88385335,189.58,189.52,7.72091736]
[1735205187647,11.38091736,189.59,189.52,7.72091736]
[1735205187848,0.88385315,189.58,189.52,7.72091736]
[1735205188349,11.38091736,189.59,189.52,7.72091736]
[1735205188550,0.88385611,189.58,189.52,7.72091736]
[1735205191055,8.60477347,189.58,189.52,7.72091736]
[1735205191357,7.72091736,189.58,189.52,7.72091736]
[1735205191954,3.66,189.59,189.54,7.72091736]
[1735205193957,25.42147466,189.61,189.54,7.72091736]
[1735205194252,0.88375808,189.6,189.54,7.72091736]
[1735205195357,3.64,189.63,189.56,7.72091736]
[1735205195550,0.88374137,189.62,189.56,7.72091736]
[1735205196055,0.88373582,189.61,189.56,7.72091736]
[1735205196253,0.88373582,189.62,189.56,7.72091736]
[1735205196557,0.88373938,189.61,189.56,7.72091736]
[1735205196757,3.64,189.63,189.56,7.72091736]
[1735205196955,0.88372262,189.62,189.56,7.72091736]
[1735205198856,15.32225414,189.63,189.56,7.72091736]
[1735205199058,0.88373967,189.62,189.56,7.72091736]
[1735205201755,0.88373484,189.61,189.56,7.72091736]
[1735205201947,11.68225414,189.63,189.56,7.72091736]
[1735205202151,0.88373398,189.62,189.56,7.72091736]
[1735205202357,11.68225414,189.63,189.56,7.72091736]
[1735205203256,19.36068333,189.63,189.56,7.72091736]
[1735205203456,11.68225414,189.63,189.56,7.72091736]
[1735205203653,3.64,189.64,189.56,7.72091736]
[1735205203856,0.88361905,189.63,189.56,7.72091736]
[1735205205051,23.00068333,189.65,189.56,7.72091736]
[1735205205453,4.52357623,189.64,189.56,7.72091736]
[1735205205757,11.63976597,189.65,189.6,7.72091736]
[1735205205959,21.77568265,189.66,189.6,7.72091736]
[1735205206263,0.8835399,189.65,189.6,7.72091736]
[1735205207665,3.64,189.68,189.6,7.72091736]
[1735205207851,0.88344213,189.67,189.62,7.72091736]
[1735205210965,3.64,189.68,189.62,7.72091736]
[1735205212662,3.64,189.68,189.61,10.36011736]
[1735205213463,0.88334476,189.67,189.61,7.72091736]
[1735205213666,3.64,189.68,189.61,7.72091736]
[1735205213869,0.88340606,189.67,189.61,7.72091736]
[1735205214369,8.60432342,189.67,189.61,7.72091736]
[1735205214574,0.88340606,189.66,189.61,7.72091736]
[1735205215170,7.72091736,189.63,189.52,4.8109]
[1735205215666,7.72091736,189.63,189.56,7.72091736]
[1735205218475,7.72091736,189.63,189.54,2.6403]
[1735205218671,0.8836035,189.62,189.56,7.72091736]
[1735205218876,4.5236035,189.62,189.56,7.72091736]
[1735205219177,0.8836035,189.61,189.56,7.72091736]
[1735205219573,3.64,189.62,189.56,7.72091736]
[1735205221783,0.88367737,189.61,189.56,7.72091736]
[1735205223381,3.64,189.62,189.56,7.72091736]
[1735205223583,0.88367316,189.61,189.56,7.72091736]
[1735205223781,3.64,189.62,189.56,7.72091736]
[1735205223981,0.8836786,189.61,189.56,7.72091736]
[1735205225882,3.64,189.62,189.56,7.72091736]
[1735205226084,0.88367859,189.61,189.56,7.72091736]
[1735205226786,3.64,189.62,189.56,7.72091736]
[1735205226981,0.88367335,189.61,189.56,7.72091736]
[1735205227181,0.88367335,189.61,189.52,5.8567]
[1735205227387,0.88367335,189.61,189.54,7.72091736]
[1735205228781,0.88372205,189.6,189.54,7.72091736]
[1735205228982,11.36091736,189.62,189.54,7.72091736]
[1735205229186,0.88372212,189.61,189.54,7.72091736]
[1735205229582,0.88372212,189.6,189.54,7.72091736]
[1735205229782,11.36091736,189.62,189.54,7.72091736]
[1735205229986,0.88372855,189.61,189.54,7.72091736]
[1735205232688,0.88372855,189.61,189.56,7.72091736]
[1735205232889,3.64,189.62,189.56,7.72091736]
[1735205233989,11.36091736,189.62,189.54,7.72091736]
[1735205234184,0.88360575,189.61,189.54,7.72091736]
[1735205234492,11.36091736,189.62,189.54,7.72091736]
[1735205234784,0.88366486,189.61,189.54,7.72091736]
[1735205234991,11.36091736,189.62,189.54,7.72091736]
[1735205235191,0.88367797,189.61,189.54,7.72091736]
[1735205235387,11.36091736,189.62,189.54,7.72091736]
[1735205235888,11.34091736,189.62,189.56,7.72091736]
[1735205237391,3.62,189.62,189.56,7.72091736]
[1735205237989,1.5848,189.63,189.56,7.72091736]
[1735205238783,1.5848,189.63,189.58,7.72091736]
[1735205241792,1.5848,189.63,189.56,7.72091736]
[1735205242094,0.88359066,189.62,189.56,7.72091736]
[1735205242792,1.5848,189.63,189.56,7.72091736]
[1735205242990,0.88362788,189.62,189.56,7.72091736]
[1735205243684,1.5848,189.63,189.56,7.72091736]
[1735205245097,7.72091736,189.61,189.52,3.2161]
[1735205245397,7.72091736,189.61,189.54,7.72091736]
[1735205245692,7.72091736,189.59,189.52,7.72091736]
[1735205245994,3.62,189.58,189.52,7.72091736]
[1735205246192,3.62,189.58,189.47,5.7942]
[1735205246496,8.60477276,189.57,189.5,7.72091736]
[1735205246690,7.72091736,189.57,189.5,7.72091736]
[1735205246894,11.34091736,189.58,189.5,7.72091736]
[1735205247097,0.8838893,189.57,189.5,7.72091736]
[1735205247299,0.8838893,189.57,189.52,7.72091736]
[1735205247796,0.8838893,189.57,189.48,2.641]
[1735205248000,0.8838893,189.57,189.54,7.72091736]
[1735205248193,19.44002329,189.62,189.56,7.72091736]
[1735205248392,0.88377598,189.61,189.54,7.72091736]
[1735205249199,0.88377598,189.61,189.56,7.72091736]
[1735205249404,0.88377598,189.61,189.47,3.153]
[1735205249601,0.88377598,189.61,189.55,7.72091736]
[1735205250700,4.84459709,189.61,189.55,7.72091736]
[1735205250902,0.88372923,189.6,189.55,7.72091736]
[1735205251107,13.01901736,189.62,189.55,7.72091736]
[1735205251401,0.88372381,189.61,189.55,7.72091736]
[1735205253004,0.88372381,189.61,189.53,7.72091736]
[1735205254299,34.82674274,189.62,189.53,7.72091736]
[1735205254499,4.84455142,189.61,189.53,7.72091736]
[1735205254699,0.88373031,189.6,189.53,7.72091736]
[1735205254899,16.97983847,189.62,189.53,7.72091736]
[1735205255109,0.8837303,189.61,189.53,7.72091736]
[1735205256695,4.84455141,189.61,189.53,7.72091736]
[1735205256896,0.8837303,189.6,189.53,7.72091736]
[1735205257098,13.01901736,189.62,189.53,7.72091736]
[1735205257298,0.88372581,189.61,189.53,7.72091736]
[1735205258204,12.51673933,189.61,189.53,7.72091736]
[1735205258403,0.88372581,189.6,189.53,7.72091736]
[1735205258705,3.96082111,189.61,189.53,7.72091736]
[1735205258910,23.20011954,189.62,189.53,7.72091736]
[1735205259113,0.88371421,189.61,189.53,7.72091736]
[1735205259409,0.88372612,189.61,189.53,7.72091736]
[1735205260009,0.88372612,189.61,189.57,7.72091736]
[1735205260203,5.2048,189.63,189.57,7.72091736]
[1735205260405,0.88364843,189.62,189.55,7.72091736]
[1735205260908,4.50364843,189.62,189.55,7.72091736]
[1735205261104,3.62,189.62,189.55,7.72091736]
[1735205263112,1.5848,189.63,189.57,7.72091736]
[1735205263309,21.82053376,189.67,189.59,7.72091736]
[1735205263513,4.50345685,189.66,189.59,7.72091736]
[1735205263709,7.58082111,189.66,189.59,7.72091736]
[1735205263909,0.88347267,189.65,189.59,7.72091736]
[1735205264314,7.58082111,189.66,189.59,7.72091736]
[1735205264716,0.88347138,189.65,189.59,7.72091736]
[1735205265110,7.58082111,189.66,189.59,7.72091736]
[1735205265306,3.62,189.66,189.59,7.72091736]
[1735205267308,3.62,189.66,189.61,7.72091736]
[1735205267513,7.72091736,189.67,189.61,7.72091736]
[1735205267716,11.34091736,189.67,189.61,7.72091736]
[1735205272420,3.62,189.67,189.61,7.72091736]
[1735205272612,11.34091736,189.69,189.61,7.72091736]
[1735205273013,7.72091736,189.69,189.61,7.72091736]
[1735205273217,11.34091736,189.69,189.61,7.72091736]
[1735205273820,11.34091736,189.69,189.63,7.72091736]
[1735205274018,21.86284065,189.71,189.63,7.72091736]
[1735205274219,0.88326942,189.7,189.63,7.72091736]
[1735205274414,1.6172,189.74,189.65,7.72091736]
[1735205274620,1.6172,189.74,189.61,3.287]
[1735205274621,3.62,189.72,189.61,3.287]
[1735205274922,7.72091736,189.71,189.65,7.72091736]
[1735205275512,7.72091736,189.71,189.63,7.72091736]
[1735205277618,7.72091736,189.69,189.61,3.287]
[1735205277917,7.72091736,189.67,189.6,1.6628]
[1735205278220,11.34091736,189.67,189.6,1.6628]
[1735205279014,7.72091736,189.65,189.57,7.72091736]
[1735205279722,7.72091736,189.65,189.59,7.72091736]
[1735205280121,3.62,189.67,189.54,5.904]
[1735205280421,8.6043528,189.66,189.59,7.72091736]
[1735205280625,7.72091736,189.66,189.59,7.72091736]
[1735205281819,3.62,189.67,189.57,7.72091736]
[1735205281820,7.72091736,189.64,189.57,7.72091736]
[1735205282026,0.88344012,189.65,189.54,3.2637]
[1735205282027,7.72091736,189.6,189.54,1.6366]
[1735205283122,7.72091736,189.6,189.53,7.72091736]
[1735205285426,7.72091736,189.6,189.49,2.6409]
[1735205285627,7.72091736,189.56,189.49,7.72091736]
[1735205285921,7.72091736,189.54,189.47,7.72091736]
[1735205286228,7.72091736,189.52,189.45,7.72091736]
[1735205289328,7.72091736,189.54,189.47,7.72091736]
[1735205289629,3.62,189.55,189.49,7.72091736]
[1735205290827,7.72091736,189.57,189.49,7.72091736]
[1735205291032,3.62,189.56,189.49,7.72091736]
[1735205291534,8.60485051,189.55,189.47,7.72091736]
[1735205291730,7.72091736,189.55,189.47,7.72091736]
[1735205291931,0.88399262,189.54,189.47,7.72091736]
[1735205292132,7.72091736,189.55,189.47,7.72091736]
[1735205294432,7.72091736,189.53,189.47,7.72091736]
[1735205295640,7.72091736,189.53,189.45,7.72091736]
[1735205297034,7.72091736,189.53,189.47,7.72091736]
[1735205298438,7.72091736,189.53,189.45,7.72091736]
[1735205300531,7.72091736,189.49,189.41,9.24751736]
[1735205300733,7.72091736,189.45,189.37,52.97830302]
[1735205301537,7.72091736,189.43,189.31,4.7361]
[1735205301733,7.72091736,189.41,189.33,7.72091736]
[1735205302041,11.34091736,189.41,189.33,7.72091736]
[1735205303736,7.72091736,189.39,189.33,7.72091736]
[1735205304141,3.62,189.41,189.31,1.5957]
[1735205305942,3.62,189.41,189.29,12.06609879]
[1735205306145,12.06609879,189.39,189.26,12.06609879]
[1735205306950,12.06609879,189.39,189.27,2.644]
[1735205308057,12.06609879,189.39,189.25,14.71029879]
[1735205308246,1.6163,189.38,189.25,14.71029879]
[1735205308651,1.6163,189.38,189.25,12.06609879]
[1735205309240,1.6163,189.38,189.27,2.6439]
[1735205309953,1.6163,189.38,189.28,12.06609879]
[1735205310250,3.62,189.39,189.31,12.06609879]
[1735205310648,3.62,189.39,189.27,1.5722]
[1735205310953,3.62,189.39,189.27,13.63829879]
[1735205312551,3.62,189.39,189.29,2.6436]
[1735205314255,3.62,189.39,189.27,13.63829879]
[1735205314450,3.62,189.39,189.3,12.06609879]
[1735205315158,1.5502,189.44,189.33,12.06609879]
[1735205315357,3.62,189.43,189.33,12.06609879]
[1735205315959,3.62,189.43,189.33,14.70909879]
[1735205316255,3.62,189.43,189.33,12.06609879]
[1735205316759,1.5502,189.44,189.33,12.06609879]
[1735205316947,3.62,189.43,189.33,12.06609879]
[1735205317553,3.62,189.43,189.34,2.643]
[1735205318758,3.62,189.43,189.33,12.06609879]
[1735205318958,3.62,189.43,189.36,12.06609879]
[1735205319161,12.06609879,189.48,189.36,12.06609879]
[1735205319363,3.6,189.47,189.36,12.06609879]
[1735205319658,3.6,189.47,189.38,2.6424]
[1735205319856,3.6,189.47,189.36,12.06609879]
[1735205320563,3.6,189.47,189.37,2.6425]
[1735205321660,3.6,189.47,189.38,2.6424]
[1735205323759,3.6,189.46,189.38,2.6424]
[1735205324161,3.6,189.46,189.39,7.71581774]
[1735205328760,7.71581774,189.45,189.37,2.6425]
[1735205329164,7.71581774,189.41,189.31,1.5261]
[1735205329364,7.71581774,189.41,189.32,2.6432]
[1735205329565,3.6,189.4,189.32,2.6432]
[1735205329762,3.6,189.4,189.33,7.71581774]
[1735205330170,3.6,189.4,189.32,2.6432]
[1735205330373,3.6,189.4,189.34,7.71581774]
[1735205332274,3.6,189.4,189.34,10.35881774]
[1735205334377,3.6,189.4,189.32,2.6433]
[1735205334577,7.71581774,189.39,189.32,7.71581774]
[1735205337179,3.6,189.4,189.32,7.71581774]
[1735205338777,7.71581774,189.39,189.31,2.6434]
[1735205339080,7.71581774,189.39,189.31,7.71581774]
[1735205339878,9.37171774,189.39,189.31,7.71581774]
[1735205340474,7.71581774,189.37,189.31,7.71581774]
[1735205347784,1.6559,189.39,189.26,2.6442]
[1735205347984,7.71581774,189.31,189.23,7.71581774]
[1735205348182,3.6,189.32,189.25,7.71581774]
[1735205348384,3.6,189.32,189.27,7.71581774]
[1735205348989,1.6691,189.36,189.27,7.71581774]
[1735205348990,5.2691,189.36,189.29,7.71581774]
[1735205349290,5.2559,189.39,189.33,7.71581774]
[1735205349679,1.6559,189.39,189.33,7.71581774]
[1735205349977,103.45849684,189.43,189.37,7.71581774]
[1735205349978,92.90996556,189.43,189.37,7.71581774]
[1735205350178,91.34646556,189.43,189.37,7.71581774]
[1735205350685,3.6,189.43,189.37,7.71581774]
[1735205352887,10.17673835,189.47,189.37,7.71581774]
[1735205353087,7.71581774,189.45,189.37,10.35841774]
[1735205354492,3.6,189.46,189.39,7.71581774]
[1735205356685,7.71581774,189.45,189.39,7.71581774]
[1735205357895,11.31581774,189.47,189.39,7.71581774]
[1735205358090,7.71581774,189.47,189.39,7.71581774]
[1735205358287,3.6,189.46,189.39,7.71581774]
[1735205358800,3.6,189.46,189.41,7.71581774]
[1735205360395,7.71581774,189.47,189.41,7.71581774]
[1735205362392,7.71581774,189.47,189.39,7.71581774]
[1735205363495,7.71581774,189.45,189.39,7.71581774]
[1735205364193,7.71581774,189.47,189.41,7.71581774]
[1735205364699,1.601,189.48,189.41,10.35781774]
[1735205364894,5.201,189.48,189.41,7.71581774]
[1735205365993,1.601,189.48,189.41,7.71581774]
[1735205368596,1.601,189.48,189.41,10.35781774]
[1735205368993,7.71581774,189.47,189.31,7.32283097]
[1735205369196,7.71581774,189.47,189.39,10.35801774]
[1735205369498,7.71581774,189.47,189.39,7.71581774]
[1735205371700,7.71581774,189.47,189.41,7.71581774]
[1735205372200,11.31581774,189.49,189.41,7.71581774]
[1735205372596,11.31581774,189.49,189.41,10.35781774]
[1735205373397,11.31581774,189.49,189.41,2.642]
[1735205373593,7.71581774,189.47,189.4,7.71581774]
[1735205374295,11.31581774,189.49,189.42,7.71581774]
[1735205375292,11.31581774,189.49,189.35,1.6173]
[1735205375494,11.31581774,189.49,189.42,7.71581774]
[1735205377909,7.71581774,189.52,189.46,7.71581774]
[1735205378105,6.75870331,189.53,189.46,7.71581774]
[1735205378306,6.75870331,189.53,189.46,10.35711774]
[1735205380507,6.75870331,189.53,189.46,7.71581774]
[1735205381009,3.15870331,189.53,189.46,7.71581774]
[1735205382304,3.15870331,189.53,189.46,10.35721774]
[1735205382506,54.94,189.63,189.48,7.71581774]
[1735205382804,7.71581774,189.57,189.5,7.71581774]
[1735205384402,7.71581774,189.57,189.5,10.35661774]
[1735205385107,11.31581774,189.59,189.52,7.71581774]
[1735205385709,12.44581774,189.61,189.54,7.71581774]
[1735205386008,1.5968,189.61,189.56,7.71581774]
[1735205387004,7.71581774,189.62,189.56,7.71581774]
[1735205387609,7.71581774,189.64,189.56,7.71581774]
[1735205387807,7.71581774,189.64,189.58,7.71581774]
[1735205388307,3.6,189.65,189.58,7.71581774]
[1735205388898,10.12228592,189.71,189.5,3.6]
[1735205388899,10.12228592,189.71,189.6,7.71581774]
[1735205389103,7.71581774,189.68,189.6,7.71581774]
[1735205389306,7.71581774,189.63,189.56,7.71581774]
[1735205389502,7.71581774,189.63,189.55,7.71581774]
[1735205392715,7.71581774,189.63,189.57,7.71581774]
[1735205398318,7.71581774,189.63,189.52,2.6406]
[1735205398617,7.71581774,189.63,189.55,7.71581774]
[1735205398819,0.88364171,189.62,189.55,7.71581774]
[1735205399317,7.71581774,189.63,189.55,7.71581774]
[1735205401024,7.71581774,189.63,189.57,7.71581774]
[1735205401219,3.6,189.64,189.57,7.71581774]
[1735205402319,4.7444,189.67,189.57,7.71581774]
[1735205402524,7.71581774,189.65,189.57,7.71581774]
[1735205402826,4.48356834,189.66,189.57,7.71581774]
[1735205402827,7.71581774,189.63,189.57,7.71581774]
[1735205403724,7.71581774,189.65,189.57,7.71581774]
[1735205406523,7.71581774,189.63,189.57,7.71581774]
[1735205407125,7.71581774,189.63,189.54,2.6403]
[1735205407331,7.71581774,189.63,189.57,7.71581774]
[1735205410030,3.6,189.66,189.5,4.94021071]
[1735205410031,7.71581774,189.61,189.5,1.34021071]
[1735205410230,7.71581774,189.59,189.52,7.71581774]
[1735205410528,7.71581774,189.57,189.5,7.71581774]
[1735205411637,7.71581774,189.57,189.46,2.6414]
[1735205411829,7.71581774,189.57,189.5,7.71581774]
[1735205412028,7.71581774,189.55,189.48,7.71581774]
[1735205412326,3.58,189.54,189.48,7.71581774]
[1735205414832,7.71581774,189.53,189.46,7.71581774]
[1735205415429,9.35511774,189.53,189.46,7.71581774]
[1735205422040,9.35511774,189.53,189.4,2.6422]